bitfinex-derivatives/quotes_SOLF0:USTF0_20260215
["timestamp","ask_amount","ask_price","bid_price","bid_amount"]
[1771194657465,3.85892111,86.457,86.379,3.74558245]
[1771194657863,3.85892111,86.457,86.383,3.74558245]
[1771194658470,3.85892111,86.449,86.383,3.74558245]
[1771194658865,3.85892111,86.446,86.383,3.74558245]
[1771194659567,3.85892111,86.446,86.35,7.35030165]
[1771194659568,3.85892111,86.446,86.385,3.74558245]
[1771194660461,3.85892111,86.446,86.386,10.425]
[1771194660668,3.85892111,86.446,86.387,3.74558245]
[1771194662468,3.85892111,86.446,86.389,3.74558245]
[1771194662968,34.7,86.493,86.35,7.35030165]
[1771194662969,3.85892111,86.478,86.401,3.74558245]
[1771194663169,3.85892111,86.478,86.421,3.74558245]
[1771194664775,3.85892111,86.478,86.423,10.4206]
[1771194665070,3.85892111,86.478,86.424,3.74558245]
[1771194665977,3.85892111,86.478,86.427,3.74558245]
[1771194666780,3.85892111,86.478,86.429,3.74558245]
[1771194667584,3.85892111,86.478,86.432,10.4195]
[1771194668578,3.85892111,86.478,86.432,14.16508245]
[1771194669183,3.85892111,86.478,86.434,10.4192]
[1771194669881,3.85892111,86.494,86.442,3.74558245]
[1771194670885,3.85892111,86.494,86.457,10.4164]
[1771194671081,3.85892111,86.511,86.458,3.74558245]
[1771194674285,3.6666344,86.52,86.458,3.74558245]
[1771194675184,3.6666344,86.512,86.458,3.74558245]
[1771194676887,3.6666344,86.553,86.458,3.74558245]
[1771194677086,10.77786515,86.554,86.4,7.35030165]
[1771194677087,3.6666344,86.529,86.461,3.83041153]
[1771194679584,3.6666344,86.529,86.462,3.83041153]
[1771194680490,3.6666344,86.529,86.465,3.83041153]
[1771194681785,3.6666344,86.529,86.469,3.83041153]
[1771194682891,3.6666344,86.529,86.471,3.83041153]
[1771194684686,3.6666344,86.529,86.479,10.4138]
[1771194684888,3.6666344,86.529,86.48,3.83041153]
[1771194685495,3.6666344,86.529,86.484,14.24361153]
[1771194686298,3.6666344,86.529,86.489,10.4127]
[1771194688898,3.6666344,86.529,86.47,7.35030165]
[1771194688899,10.404,86.561,86.488,3.83041153]
[1771194689791,10.404,86.561,86.497,10.4117]
[1771194690399,10.4054,86.55,86.488,14.24311153]
[1771194690899,3.6666344,86.549,86.488,14.24311153]
[1771194691694,3.6666344,86.546,86.488,14.24311153]
[1771194691901,3.6666344,86.539,86.488,14.24311153]
[1771194692299,3.6666344,86.539,86.493,10.4121]
[1771194698810,3.6666344,86.539,86.49,2.73718248]
[1771194699416,3.6666344,86.537,86.49,3.83041153]
[1771194700814,3.6666344,86.534,86.49,3.83041153]
[1771194701208,3.6666344,86.534,86.493,3.83041153]
[1771194712014,3.59984124,86.557,86.5,2.73687041]
[1771194712215,3.59984124,86.557,86.511,3.71781585]
[1771194712809,396.00552111,86.586,86.465,113.59315294]
[1771194712810,3.59984124,86.573,86.52,6.45468626]
[1771194713012,3.59984124,86.573,86.521,3.71781585]
[1771194713211,3.59984124,86.571,86.521,3.71781585]
[1771194713718,10.4038,86.563,86.521,3.71781585]
[1771194719617,3.59984124,86.562,86.521,3.71781585]
[1771194721227,3.59984124,86.562,86.531,3.71781585]
[1771194721424,10.4025,86.574,86.531,3.71781585]
[1771194721425,14.00234124,86.574,86.531,3.71781585]
[1771194721622,8.38292624,86.583,86.541,3.71781585]
[1771194721926,11.98276748,86.584,86.541,3.71781585]
[1771194722327,3.59984124,86.584,86.541,3.71781585]
[1771194722628,3.59984124,86.583,86.541,3.71781585]
[1771194723631,3.59984124,86.579,86.541,3.71781585]
[1771194736142,14.27337621,86.575,86.541,3.71781585]
[1771194736348,3.87097621,86.574,86.533,14.13140501]
[1771194736748,3.87097621,86.574,86.534,3.72400501]
[1771194737549,3.87097621,86.574,86.536,3.72400501]
[1771194739753,3.87097621,86.574,86.539,3.72400501]
[1771194741254,10.4015,86.582,86.54,2.73687041]
[1771194741556,10.4015,86.582,86.541,3.72400501]
[1771194742157,3.87097621,86.59,86.501,92.2]
[1771194742158,3.87097621,86.59,86.551,3.72400501]
[1771194742358,298.36,86.589,86.551,3.72400501]
[1771194742963,3.87097621,86.602,86.556,3.72400501]
[1771194743158,10.399,86.603,86.561,3.72400501]
[1771194747068,3.87097621,86.61,86.567,3.72400501]
[1771194747765,3.87097621,86.61,86.569,10.403]
[1771194748661,3.87097621,86.61,86.569,14.12700501]
[1771194748867,3.87097621,86.61,86.57,3.72400501]
[1771194752374,3.87097621,86.603,86.56,3.72400501]
[1771194753262,3.87097621,86.603,86.568,10.403]
[1771194753466,3.87097621,86.603,86.568,14.12700501]
[1771194753867,3.87097621,86.603,86.569,3.72400501]
[1771194755373,9.41143783,86.602,86.569,3.72400501]
[1771194755574,3.87097621,86.603,86.569,3.72400501]
[1771194755773,13.28241404,86.602,86.569,3.72400501]
[1771194756075,3.87097621,86.602,86.569,3.72400501]
[1771194756375,9.41555482,86.601,86.569,3.72400501]
[1771194756577,3.87097621,86.602,86.569,3.72400501]
[1771194756877,9.41555482,86.601,86.569,3.72400501]
[1771194757174,3.87097621,86.602,86.569,3.72400501]
[1771194757475,9.41555482,86.601,86.569,3.72400501]
[1771194757680,3.87097621,86.602,86.569,3.72400501]
[1771194757868,9.41579428,86.601,86.569,3.72400501]
[1771194758073,3.87097621,86.602,86.569,3.72400501]
[1771194758469,9.41586687,86.601,86.569,3.72400501]
[1771194758673,3.87097621,86.602,86.569,3.72400501]
[1771194758976,9.41586687,86.601,86.569,3.72400501]
[1771194759177,3.87097621,86.602,86.572,3.72400501]
[1771194759977,9.41630213,86.601,86.572,3.72400501]
[1771194760277,3.87097621,86.602,86.572,3.72400501]
[1771194760478,9.41630213,86.601,86.572,3.72400501]
[1771194760776,3.87097621,86.602,86.572,3.72400501]
[1771194760976,9.4174466,86.601,86.572,3.72400501]
[1771194761277,3.87097621,86.599,86.56,10.4041]
[1771194761477,3.87097621,86.597,86.56,10.4041]
[1771194761672,3.87097621,86.595,86.56,10.4041]
[1771194761872,3.87097621,86.593,86.56,10.4041]
[1771194762073,3.87097621,86.591,86.56,10.4041]
[1771194762879,9.4209731,86.59,86.56,10.4041]
[1771194763177,3.87097621,86.591,86.56,10.4041]
[1771194763375,9.42141232,86.59,86.56,10.4041]
[1771194763575,3.87097621,86.591,86.56,10.4041]
[1771194763777,9.42269023,86.59,86.56,10.4041]
[1771194763974,3.87097621,86.591,86.56,10.4041]
[1771194764175,9.42269023,86.59,86.56,10.4041]
[1771194764373,9.42269023,86.589,86.56,10.4041]
[1771194764574,3.87097621,86.591,86.56,10.4041]
[1771194764775,9.42464931,86.59,86.56,10.4041]
[1771194765077,9.42464931,86.589,86.56,10.4041]
[1771194765279,3.84020469,86.59,86.56,10.4041]
[1771194765477,9.42509296,86.589,86.56,10.4041]
[1771194765678,3.84020469,86.59,86.56,10.4041]
[1771194765879,9.42509296,86.589,86.56,10.4041]
[1771194766082,3.84020469,86.59,86.56,10.4041]
[1771194766283,9.42717986,86.589,86.56,10.4041]
[1771194766474,9.42717986,86.588,86.56,10.4041]
[1771194766671,3.84020469,86.59,86.56,10.4041]
[1771194766873,9.42729753,86.589,86.56,10.4041]
[1771194767081,9.42729753,86.588,86.56,10.4041]
[1771194767277,3.84020469,86.59,86.56,10.4041]
[1771194767477,9.42760481,86.589,86.56,10.4041]
[1771194767679,9.42760481,86.588,86.56,10.4041]
[1771194767880,3.84020469,86.59,86.56,10.4041]
[1771194768080,9.42760481,86.589,86.56,10.4041]
[1771194768382,9.42760481,86.588,86.56,10.4041]
[1771194768582,3.84020469,86.59,86.56,10.4041]
[1771194768779,9.42804002,86.589,86.56,10.4041]
[1771194769073,9.42804002,86.588,86.56,10.4041]
[1771194769275,3.84020469,86.59,86.56,10.4041]
[1771194769481,9.42852489,86.589,86.56,10.4041]
[1771194769672,9.42852489,86.588,86.56,10.4041]
[1771194769871,3.84020469,86.59,86.56,10.4041]
[1771194770070,9.42852489,86.589,86.56,10.4041]
[1771194770272,9.42852489,86.588,86.56,10.4041]
[1771194770474,3.84020469,86.59,86.56,10.4041]
[1771194770781,9.42906244,86.589,86.56,10.4041]
[1771194770982,9.42906244,86.588,86.56,10.4041]
[1771194771281,9.42906244,86.588,86.558,3.72400501]
[1771194771282,3.84020469,86.602,86.564,3.73608618]
[1771194771477,13.26897754,86.601,86.564,3.73608618]
[1771194771672,9.42877285,86.6,86.564,3.73608618]
[1771194771883,9.42877285,86.599,86.564,3.73608618]
[1771194772083,3.84020469,86.601,86.564,3.73608618]
[1771194773773,3.84020469,86.6,86.564,3.73608618]
[1771194779886,3.84020469,86.615,86.567,3.73608618]
[1771194780090,3.84020469,86.613,86.567,3.73608618]
[1771194780388,12.2681456,86.612,86.567,3.73608618]
[1771194780589,12.2681456,86.611,86.567,3.73608618]
[1771194780789,10.3985,86.607,86.567,3.73608618]
[1771194780991,3.84020469,86.606,86.567,3.73608618]
[1771194782890,10.3989,86.604,86.567,3.73608618]
[1771194783289,14.23910469,86.604,86.567,3.73608618]
[1771194783485,3.84020469,86.603,86.567,3.73608618]
[1771194784392,8.42794091,86.606,86.578,3.73608618]
[1771194784589,3.84020469,86.612,86.578,3.73608618]
[1771194784788,8.42794091,86.611,86.578,3.73608618]
[1771194784990,8.42794091,86.61,86.578,3.73608618]
[1771194785192,8.43470628,86.611,86.578,3.73608618]
[1771194785396,8.43470628,86.61,86.579,10.4018]
[1771194785696,3.84020469,86.612,86.579,10.4018]
[1771194785895,8.43643708,86.611,86.578,3.73608618]
[1771194786191,8.43643708,86.61,86.578,3.73608618]
[1771194786497,8.43643708,86.609,86.578,3.73608618]
[1771194786696,3.84020469,86.612,86.578,3.73608618]
[1771194786899,8.43860992,86.611,86.578,3.73608618]
[1771194787094,8.43860992,86.61,86.578,3.73608618]
[1771194787296,8.43860992,86.609,86.578,3.73608618]
[1771194787496,3.84020469,86.612,86.578,3.73608618]
[1771194787696,8.43905502,86.611,86.578,3.73608618]
[1771194787899,8.43905502,86.61,86.578,3.73608618]
[1771194788102,8.43905502,86.609,86.578,3.73608618]
[1771194788298,3.84020469,86.612,86.578,3.73608618]
[1771194788499,8.4386102,86.611,86.578,3.73608618]
[1771194788702,8.4386102,86.61,86.578,3.73608618]
[1771194788895,8.4386102,86.609,86.578,3.73608618]
[1771194789195,3.84020469,86.612,86.578,3.73608618]
[1771194789400,8.4484158,86.611,86.578,3.73608618]
[1771194789600,8.4484158,86.61,86.578,3.73608618]
[1771194789794,8.4484158,86.609,86.578,3.73608618]
[1771194789994,8.4484158,86.608,86.578,3.73608618]
[1771194790196,8.4484158,86.607,86.578,3.73608618]
[1771194790404,2.73354818,86.62,86.578,3.73608618]
[1771194790602,8.44802752,86.619,86.578,3.73608618]
[1771194790792,3.84020469,86.617,86.578,3.73608618]
[1771194790996,8.44802752,86.616,86.578,3.73608618]
[1771194791298,8.44802752,86.615,86.582,3.73608618]
[1771194791503,172.53583709,86.622,86.582,3.73608618]
[1771194792207,172.53583709,86.622,86.593,3.73608618]
[1771194793003,3.84020469,86.639,86.593,3.73608618]
[1771194793200,8.44139664,86.635,86.593,3.73608618]
[1771194793399,3.84020469,86.639,86.593,3.73608618]
[1771194793597,8.43685356,86.638,86.593,3.73608618]
[1771194793803,8.43685356,86.637,86.593,3.73608618]
[1771194794003,8.43685356,86.636,86.593,3.73608618]
[1771194794205,3.84020469,86.639,86.593,3.73608618]
[1771194794401,8.43339572,86.638,86.593,3.73608618]
[1771194794801,8.43339572,86.638,86.601,14.28503018]
[1771194795403,3.84020469,86.639,86.601,14.28503018]
[1771194796806,3.84020469,86.639,86.602,3.88593018]
[1771194799301,8.43339572,86.649,86.604,3.88593018]
[1771194799800,3.97412058,86.648,86.604,3.88593018]
[1771194801994,2.73354818,86.65,86.604,3.88593018]
[1771194801995,3.97412058,86.646,86.604,3.88593018]
[1771194802199,3.97412058,86.644,86.604,3.88593018]
[1771194802399,9.46062691,86.643,86.604,3.88593018]
[1771194802596,9.46062691,86.642,86.604,3.88593018]
[1771194802901,9.46062691,86.641,86.604,3.88593018]
[1771194803101,9.46062691,86.64,86.604,3.88593018]
[1771194803308,9.46062691,86.639,86.604,3.88593018]
[1771194803607,9.46062691,86.639,86.603,10.3989]
[1771194803608,9.46062691,86.638,86.606,14.28443018]
[1771194803808,9.46062691,86.637,86.607,3.88593018]
[1771194804109,9.46062691,86.636,86.607,3.88593018]
[1771194804305,2.73354818,86.64,86.607,3.88593018]
[1771194804508,9.45618533,86.639,86.607,3.88593018]
[1771194804709,2.73354818,86.64,86.607,3.88593018]
[1771194804710,9.45618533,86.638,86.607,3.88593018]
[1771194804908,9.45618533,86.637,86.607,3.88593018]
[1771194805209,9.45377123,86.643,86.612,14.28373018]
[1771194805405,3.97412058,86.644,86.613,3.88593018]
[1771194811412,3.97412058,86.644,86.614,10.3976]
[1771194811815,3.97412058,86.659,86.615,3.88593018]
[1771194812418,2.73354818,86.67,86.626,3.88593018]
[1771194812717,3.97412058,86.671,86.626,3.88593018]
[1771194813222,3.97412058,86.671,86.634,3.88593018]
[1771194814519,2.73354818,86.67,86.634,3.88593018]
[1771194814725,6.70766876,86.67,86.634,3.88593018]
[1771194815819,3.97412058,86.67,86.637,3.88593018]
[1771194829731,3.6200738,86.68,86.637,3.88593018]
[1771194831228,3.6200738,86.679,86.637,3.88593018]
[1771194831928,3.6200738,86.677,86.637,3.88593018]
[1771194832124,13.05325805,86.676,86.637,3.88593018]
[1771194832327,9.43318425,86.675,86.637,3.88593018]
[1771194832524,9.43318425,86.674,86.637,3.88593018]
[1771194832726,9.43318425,86.673,86.637,3.88593018]
[1771194832926,9.43318425,86.672,86.637,3.88593018]
[1771194833131,9.43318425,86.682,86.644,3.75779823]
[1771194833332,325.04,86.683,86.644,3.75779823]
[1771194834731,325.04,86.683,86.601,244.01992863]
[1771194834732,2.72801397,86.68,86.633,14.15299823]
[1771194834942,3.6200738,86.678,86.634,3.75779823]
[1771194835144,3.6200738,86.676,86.634,3.75779823]
[1771194835340,3.6200738,86.674,86.634,3.75779823]
[1771194838444,3.6200738,86.674,86.638,3.75779823]
[1771194839038,9.52268256,86.683,86.645,3.75779823]
[1771194839241,9.52268256,86.682,86.645,3.75779823]
[1771194839444,9.52268256,86.683,86.645,3.75779823]
[1771194839645,9.52268256,86.682,86.645,3.75779823]
[1771194839845,9.52268256,86.683,86.645,3.75779823]
[1771194840046,9.52268256,86.682,86.645,3.75779823]
[1771194840248,9.52268256,86.683,86.645,3.75779823]
[1771194840448,9.52268256,86.682,86.645,3.75779823]
[1771194840646,27.27017671,86.684,86.648,3.75779823]
[1771194840950,3.6200738,86.683,86.637,3.75779823]
[1771194841253,3.6200738,86.679,86.637,3.75779823]
[1771194842343,3.6200738,86.679,86.63,10.3957]
[1771194842540,3.6200738,86.678,86.63,10.3957]
[1771194843247,3.6200738,86.677,86.63,10.3957]
[1771194844348,3.6200738,86.676,86.63,10.3957]
[1771194845139,3.6200738,86.665,86.611,3.75779823]
[1771194845345,3.6200738,86.659,86.611,3.75779823]
[1771194845540,3.6200738,86.657,86.611,3.75779823]
[1771194845745,3.6200738,86.649,86.611,3.75779823]
[1771194845946,3.6200738,86.649,86.599,3.75779823]
[1771194846245,2.72801397,86.65,86.599,3.75779823]
[1771194846246,3.6200738,86.647,86.599,3.75779823]
[1771194846552,2.72801397,86.64,86.599,3.75779823]
[1771194847143,6.34808777,86.64,86.599,3.75779823]
[1771194848552,3.6200738,86.639,86.599,3.75779823]
[1771194849152,2.72801397,86.63,86.599,3.75779823]
[1771194851456,3.6200738,86.619,86.581,3.75779823]
[1771194853356,2.72801397,86.61,86.581,3.75779823]
[1771194854853,3.6200738,86.619,86.581,3.75779823]
[1771194855758,2.72801397,86.61,86.581,3.75779823]
[1771194859564,10.3984,86.608,86.581,3.75779823]
[1771194860660,10.3984,86.608,86.581,9.823e-05]
[1771194861266,10.3984,86.608,86.56,2.72801397]
[1771194862564,10.3984,86.608,86.561,3.71510693]
[1771194863562,10.3994,86.6,86.561,3.71510693]
[1771194865467,3.6200738,86.619,86.562,3.71510693]
[1771194865764,3.96120894,86.629,86.571,3.71510693]
[1771194866865,2.72801397,86.62,86.571,3.71510693]
[1771194867165,3.96120894,86.619,86.571,3.71510693]
[1771194871372,3.96120894,86.619,86.572,10.4027]
[1771194871671,3.96120894,86.619,86.573,3.71510693]
[1771194875077,2.72801397,86.62,86.573,3.71510693]
[1771194875078,3.96120894,86.617,86.573,3.71510693]
[1771194875471,3.96120894,86.609,86.573,3.71510693]
[1771194880483,14.35950894,86.609,86.573,3.71510693]
[1771194880871,3.96120894,86.608,86.551,3.71510693]
[1771194881088,3.96120894,86.599,86.551,3.71510693]
[1771194883988,3.67798442,86.593,86.551,3.71510693]
[1771194885874,14.21267345,86.589,86.551,3.71510693]
[1771194886278,3.81207345,86.588,86.551,3.71510693]
[1771194887383,3.81207345,86.585,86.551,3.71510693]
[1771194891988,10.4018,86.58,86.551,3.71510693]
[1771194892499,3.81207345,86.585,86.551,3.71510693]
[1771194893894,10.4013,86.584,86.551,3.71510693]
[1771194894193,3.81207345,86.583,86.551,3.71510693]
[1771194895590,10.4019,86.579,86.551,3.71510693]
[1771194899289,3.81207345,86.569,86.512,10.4098]
[1771194899487,3.81207345,86.569,86.51,2.73360891]
[1771194899693,3.81207345,86.567,86.51,2.73360891]
[1771194900797,10.4059,86.546,86.51,2.73360891]
[1771194901294,10.4059,86.546,86.511,3.68186628]
[1771194901798,10.4069,86.538,86.511,3.68186628]
[1771194902497,10.4053,86.551,86.511,3.68186628]
[1771194902692,14.21737345,86.551,86.511,3.68186628]
[1771194903305,161.6674,86.654,86.491,92.18]
[1771194903306,14.21597345,86.562,86.521,3.68186628]
[1771194903599,3.81207345,86.561,86.521,3.68186628]
[1771194903793,14.21487345,86.572,86.54,2.73360891]
[1771194906601,14.21487345,86.572,86.541,3.68186628]
[1771194908797,3.81207345,86.572,86.54,7.519e-05]
[1771194909104,14.21477345,86.572,86.53,2.73360891]
[1771194909305,3.81207345,86.571,86.53,2.73360891]
[1771194910795,10.4034,86.567,86.53,2.73360891]
[1771194910997,10.4034,86.567,86.531,0.37818618]
[1771194913496,3.81207345,86.571,86.531,0.37818618]
[1771194917006,3.87262004,86.569,86.531,0.37818618]
[1771194917803,3.87262004,86.567,86.531,0.37818618]
[1771194918802,3.87262004,86.561,86.521,0.35826222]
[1771194920911,3.87262004,86.559,86.521,0.35826222]
[1771194921709,10.4046,86.557,86.521,0.35826222]
[1771194921905,3.87262004,86.556,86.511,0.3688771]
[1771194922211,3.87262004,86.555,86.511,0.3688771]
[1771194922411,3.87262004,86.555,86.52,2.73360891]
[1771194924905,3.87262004,86.548,86.511,0.3688771]
[1771194926807,3.87262004,86.546,86.511,0.3688771]
[1771194927107,3.87262004,86.546,86.5,2.73360891]
[1771194927413,3.87262004,86.546,86.501,0.32871054]
[1771194928916,10.4071,86.536,86.501,0.32871054]
[1771194931515,10.4071,86.536,86.51,2.73360891]
[1771194932517,3.87262004,86.537,86.51,2.73360891]
[1771194935918,3.87262004,86.537,86.501,0.32871054]
[1771194936616,3.87262004,86.537,86.5,2.73360891]
[1771194936823,3.87262004,86.537,86.501,0.32871788]
[1771194938122,3.87262004,86.537,86.503,0.32768595]
[1771194938323,3.87262004,86.537,86.51,2.73360891]
[1771194946919,3.87262004,86.537,86.502,10.4111]
[1771194963353,3.87262004,86.537,86.478,248.72744579]
[1771194963354,3.76602197,86.519,86.463,2.97448371]
[1771194964445,3.76602197,86.509,86.463,2.97448371]
[1771194964747,3.76602197,86.507,86.463,2.97448371]
[1771194964947,3.76602197,86.505,86.463,2.97448371]
[1771194965145,3.76602197,86.503,86.463,2.97448371]
[1771194965448,3.76602197,86.501,86.463,2.97448371]
[1771194971440,3.76602197,86.513,86.424,20.8409]
[1771194971640,3.76602197,86.513,86.414,21.35315294]
[1771194971641,3.76602197,86.499,86.451,2.78393997]
[1771194971851,3.76602197,86.497,86.451,2.78393997]
[1771194972850,3.76602197,86.497,86.454,2.78169838]
[1771194973555,3.94018041,86.489,86.444,10.418]
[1771194973956,3.94018041,86.489,86.444,13.2095302]
[1771194974153,3.94018041,86.489,86.445,3.16965311]
[1771194974547,3.94018041,86.489,86.444,10.418]
[1771194974548,3.94018041,86.479,86.435,10.4192]
[1771194979755,3.94018041,86.479,86.435,13.60297991]
[1771194981760,3.94018041,86.479,86.438,3.15492493]
[1771194982255,3.94018041,86.49,86.457,3.15300063]
[1771194983056,3.94018041,86.49,86.458,3.15300063]
[1771194983260,3.94018041,86.49,86.46,2.73639387]
[1771194983763,3.94018041,86.49,86.458,3.15300063]
[1771194984360,3.94018041,86.49,86.46,10.4161]
[1771194985861,2.73639387,86.51,86.464,10.4157]
[1771194986061,3.94018041,86.508,86.464,10.4157]
[1771194986267,3.94018041,86.506,86.464,10.4157]
[1771194986565,3.94018041,86.504,86.464,10.4157]
[1771194986759,3.94018041,86.502,86.464,10.4157]
[1771194987564,3.94018041,86.502,86.461,2.68944179]
[1771194988261,10.01188066,86.508,86.461,2.68944179]
[1771194988460,14.35018041,86.512,86.461,2.68944179]
[1771194988666,3.94018041,86.511,86.461,2.68944179]
[1771194988965,14.35058041,86.508,86.461,2.68944179]
[1771194989655,3.94018041,86.508,86.48,2.73639387]
[1771194989854,20.8061,86.57,86.48,2.73639387]
[1771194989855,3.94018041,86.52,86.481,2.61899958]
[1771194990061,311.3,86.542,86.491,2.61899958]
[1771194990062,3.94018041,86.541,86.491,2.61899958]
[1771194990263,3.94018041,86.539,86.491,2.61899958]
[1771194990461,3.94018041,86.538,86.491,2.61899958]
[1771194990767,3.94018041,86.541,86.501,2.6056739]
[1771194991565,3.94018041,86.54,86.501,2.6056739]
[1771194999268,312.22,86.565,86.5,2.73639387]
[1771194999269,3.94018041,86.554,86.511,2.64939319]
[1771195002677,3.94018041,86.554,86.513,2.74430483]
[1771195004277,3.94018041,86.554,86.516,2.68851569]
[1771195005078,3.92081147,86.565,86.524,2.68904192]
[1771195006877,3.92081147,86.565,86.527,2.6132196]
[1771195007380,3.92081147,86.579,86.531,2.6132196]
[1771195011682,3.92081147,86.579,86.532,13.00619313]
[1771195011882,3.92081147,86.579,86.533,2.59869313]
[1771195016588,2.73420058,86.58,86.533,2.59869313]
[1771195016785,3.92081147,86.579,86.533,2.59869313]
[1771195018288,3.92081147,86.577,86.533,2.59869313]
[1771195018783,3.92081147,86.577,86.541,2.69121639]
[1771195022789,10.4024,86.575,86.541,2.69121639]
[1771195027895,10.4028,86.572,86.541,2.69121639]
[1771195032100,10.4038,86.563,86.541,2.69121639]
[1771195038001,10.4038,86.563,86.531,2.9684643]
[1771195039507,3.92081147,86.572,86.531,2.9684643]
[1771195039708,3.65317575,86.57,86.531,2.9684643]
[1771195039909,3.65317575,86.568,86.531,2.9684643]
[1771195040109,13.55537311,86.567,86.531,2.9684643]
[1771195040310,3.65317575,86.567,86.531,2.9684643]
[1771195041009,3.65317575,86.565,86.531,2.9684643]
[1771195042802,9.90581926,86.564,86.51,2.73420058]
[1771195043103,3.65317575,86.559,86.506,2.94840681]
[1771195043302,3.65317575,86.557,86.506,2.94840681]
[1771195043507,3.65317575,86.549,86.5,13.14550058]
[1771195043810,3.65317575,86.547,86.5,2.73420058]
[1771195044114,3.65317575,86.545,86.494,2.94840681]
[1771195044310,3.65317575,86.543,86.494,2.94840681]
[1771195044611,3.65317575,86.541,86.494,2.94840681]
[1771195044813,3.65317575,86.539,86.494,2.94840681]
[1771195045111,3.65317575,86.537,86.494,2.94840681]
[1771195045709,3.65317575,86.535,86.494,2.94840681]
[1771195046010,3.65317575,86.533,86.494,2.94840681]
[1771195046211,3.65317575,86.531,86.494,2.94840681]
[1771195049104,3.65317575,86.531,86.499,3.09173138]
[1771195049715,3.65317575,86.531,86.5,10.4113]
[1771195053114,3.65317575,86.531,86.507,10.4105]
[1771195053115,7.575e-05,86.531,86.507,10.4105]
[1771195058725,7.575e-05,86.531,86.501,2.85230078]
[1771195059124,9.88193969,86.548,86.501,2.85230078]
[1771195059322,8.42232446,86.569,86.48,342.58554406]
[1771195059323,3.65317575,86.567,86.521,3.78520358]
[1771195060427,3.65317575,86.567,86.53,6.51940416]
[1771195061223,3.65317575,86.567,86.54,2.73420058]
[1771195061435,306.43072451,86.604,86.488,21.35315294]
[1771195061436,3.65317575,86.588,86.551,3.78520358]
[1771195061728,3.65317575,86.602,86.561,3.78520358]
[1771195061922,13.52854077,86.601,86.561,3.78520358]
[1771195062118,3.65317575,86.601,86.561,3.78520358]
[1771195066324,3.6518354,86.599,86.561,3.78520358]
[1771195067822,3.6518354,86.589,86.515,3.96033248]
[1771195068028,306.43072451,86.604,86.52,2.73420058]
[1771195068029,3.6518354,86.579,86.52,2.73420058]
[1771195068932,3.6518354,86.579,86.52,6.69453306]
[1771195069235,3.6518354,86.569,86.52,3.96033248]
[1771195073934,3.6518354,86.569,86.48,250.38554406]
[1771195073935,3.6518354,86.529,86.479,3.96033248]
[1771195074239,3.6518354,86.529,86.409,28.3516968]
[1771195074240,3.6518354,86.519,86.461,3.96033248]
[1771195074442,3.6518354,86.519,86.471,3.96033248]
[1771195075238,3.6518354,86.489,86.438,3.96033248]
[1771195075640,3.6518354,86.479,86.438,3.96033248]
[1771195075835,3.6518354,86.479,86.42,2.73619052]
[1771195076135,3.6518354,86.479,86.421,3.96033248]
[1771195076336,3.6518354,86.449,86.395,3.96033248]
[1771195076534,3.6518354,86.449,86.4,2.73619052]
[1771195077036,3.6518354,86.449,86.41,2.73619052]
[1771195077937,3.6518354,86.475,86.43,2.73619052]
[1771195078143,3.6518354,86.475,86.431,3.96033248]
[1771195079037,3.6518354,86.499,86.46,2.73619052]
[1771195080340,3.6518354,86.499,86.417,92.22]
[1771195080341,3.6518354,86.511,86.461,3.96033248]
[1771195080534,3.6518354,86.511,86.46,2.73619052]
[1771195080935,2.73619052,86.51,86.452,3.96033248]
[1771195081138,3.6518354,86.524,86.481,3.96033248]
[1771195085144,95.8718354,86.539,86.5,2.73619052]
[1771195086942,161.7411,86.615,86.495,10.4119]
[1771195086943,278.21547582,86.659,86.535,3.96033248]
[1771195087244,2.73619052,86.62,86.56,2.73619052]
[1771195087441,2.01002703,86.639,86.542,10.4062]
[1771195087442,2.73619052,86.6,86.542,10.4062]
[1771195087947,92.22,86.611,86.542,10.4062]
[1771195088741,10.3982,86.61,86.542,10.4062]
[1771195088942,3.6518354,86.609,86.542,10.4062]
[1771195089537,3.6518354,86.607,86.535,3.96033248]
[1771195090846,3.6518354,86.605,86.535,3.96033248]
[1771195093048,3.6518354,86.603,86.535,3.96033248]
[1771195094845,3.95816462,86.6,86.535,3.96033248]
[1771195097548,3.95816462,86.598,86.535,3.96033248]
[1771195099451,3.95816462,86.598,86.537,3.97941683]
[1771195100651,3.95816462,86.598,86.545,3.97941683]
[1771195101756,3.95816462,86.598,86.547,10.4057]
[1771195102459,3.95816462,86.598,86.554,3.97941683]
[1771195102655,3.95816462,86.616,86.554,3.97941683]
[1771195103060,3.95816462,86.616,86.558,3.97941683]
[1771195103254,3.95816462,86.616,86.545,3.97941683]
[1771195103458,3.95816462,86.615,86.545,3.97941683]
[1771195104560,3.95816462,86.613,86.545,3.97941683]
[1771195104760,3.95816462,86.604,86.545,3.97941683]
[1771195106054,10.4054,86.55,86.491,3.97941683]
[1771195106259,3.95816462,86.539,86.473,3.97941683]
[1771195106965,14.36506462,86.538,86.484,3.97941683]
[1771195107162,3.95816462,86.537,86.484,3.97941683]
[1771195108758,3.95816462,86.535,86.484,3.97941683]